bitfinex/quotes_SOLUSD_20240930
["timestamp","ask_amount","ask_price","bid_price","bid_amount"]
[1727680505029,0.0745997,157.73,157.72,0.12549]
[1727680505224,0.0745997,157.73,157.72,20.12549]
[1727680506238,0.0745997,157.73,157.7,20.12549]
[1727680506548,0.0745997,157.73,157.69,20.0]
[1727680506849,0.0745997,157.73,157.7,0.12549]
[1727680507425,0.0745997,157.73,157.7,11.51593531]
[1727680507826,0.0745997,157.73,157.7,10.24805763]
[1727680508648,0.0745997,157.73,157.7,0.12549]
[1727680508828,0.0745997,157.73,157.69,0.25098]
[1727680509324,0.0745997,157.73,157.68,30.12256763]
[1727680509544,16.4632997,157.73,157.68,20.0]
[1727680509736,16.4632997,157.73,157.67,20.0]
[1727680511037,16.4632997,157.73,157.68,1.3935904]
[1727680511232,16.4632997,157.73,157.68,23.902374]
[1727680511534,16.4632997,157.73,157.69,20.0]
[1727680511943,16.4632997,157.73,157.68,20.0]
[1727680512730,16.4632997,157.73,157.69,11.39066367]
[1727680513145,16.4632997,157.73,157.69,10.12256763]
[1727680514754,16.4632997,157.73,157.7,20.0]
[1727680514927,0.0745997,157.73,157.71,0.25098]
[1727680515131,0.0745997,157.73,157.71,10.37354763]
[1727680515542,0.0745997,157.73,157.7,20.0]
[1727680515742,0.0745997,157.73,157.7,30.12256763]
[1727680517339,0.0745997,157.73,157.7,20.0]
[1727680518248,0.0745997,157.73,157.7,29.12816919]
[1727680519151,0.0745997,157.73,157.7,27.86009838]
[1727680519935,0.0745997,157.73,157.71,8.02554411]
[1727680520140,0.0745997,157.73,157.7,27.86009838]
[1727680520338,0.0745997,157.73,157.7,20.0]
[1727680520544,0.0745997,157.73,157.71,10.24805763]
[1727680522762,0.0745997,157.73,157.72,20.0]
[1727680523252,0.0745997,157.73,157.7,20.0]
[1727680524338,0.0745997,157.73,157.69,0.12549]
[1727680524533,0.0745997,157.73,157.69,20.25098]
[1727680524855,0.0745997,157.73,157.71,20.0]
[1727680526950,0.0745997,157.73,157.72,30.12256763]
[1727680529158,0.0745997,157.73,157.7,10.12256763]
[1727680529339,0.0745997,157.73,157.71,20.25098]
[1727680531553,0.0745997,157.73,157.66,10.12256763]
[1727680532552,0.0745997,157.73,157.68,10.12256763]
[1727680532755,0.0745997,157.73,157.69,20.0]
[1727680532966,0.0745997,157.73,157.7,0.12549]
[1727680533152,0.0745997,157.73,157.68,0.12549]
[1727680533336,0.0745997,157.73,157.7,20.0]
[1727680535048,0.0745997,157.73,157.68,20.0]
[1727680537364,0.0745997,157.73,157.69,1.26810864]
[1727680537561,0.0745997,157.73,157.69,10.12256763]
[1727680539356,0.0745997,157.73,157.7,1.26803839]
[1727680539674,0.0745997,157.73,157.69,20.0]
[1727680540044,0.0745997,157.73,157.7,1.26798192]
[1727680541168,0.0745997,157.73,157.69,20.0]
[1727680541347,0.0745997,157.73,157.7,1.26797372]
[1727680542054,0.0745997,157.73,157.69,20.0]
[1727680542464,0.0745997,157.73,157.7,1.26797356]
[1727680542661,0.0745997,157.73,157.7,11.39054119]
[1727680543670,0.0745997,157.73,157.72,0.25098]
[1727680543871,0.0745997,157.73,157.72,20.25098]
[1727680544970,0.0745997,157.73,157.72,30.37354763]
[1727680545173,0.0745997,157.73,157.72,30.12256763]
[1727680545376,0.0745997,157.73,157.72,30.37354763]
[1727680550853,0.0745997,157.73,157.72,20.25098]
[1727680551059,0.0745997,157.73,157.68,4.89453759]
[1727680551060,0.0745997,157.73,157.7,24.027864]
[1727680551274,0.0745997,157.73,157.71,20.0]
[1727680551668,0.0745997,157.73,157.72,31.64128071]
[1727680551878,0.0745997,157.73,157.72,55.41816471]
[1727680552176,9.97e-05,157.73,157.72,55.41816471]
[1727680554564,9.97e-05,157.73,157.72,54.15043163]
[1727680554787,9.97e-05,157.73,157.72,31.42735812]
[1727680554975,9.97e-05,157.73,157.72,10.03450417]
[1727680556383,9.97e-05,157.73,157.72,30.03450417]
[1727680556690,9.97e-05,157.73,157.72,20.0]
[1727680556993,9.97e-05,157.73,157.72,30.03888497]
[1727680557190,9.97e-05,157.73,157.72,10.03888497]
[1727680559375,9.97e-05,157.73,157.64,23.10980654]
[1727680559575,9.97e-05,157.73,157.65,10.04550312]
[1727680559773,9.97e-05,157.73,157.66,10.04550312]
[1727680559992,16.129,157.72,157.67,10.04577821]
[1727680560196,16.129,157.72,157.68,10.04577821]
[1727680560373,16.129,157.72,157.69,10.04577821]
[1727680560574,16.129,157.72,157.64,12.98723891]
[1727680560575,16.129,157.72,157.7,10.04577821]
[1727680560873,16.129,157.72,157.64,6.63523891]
[1727680561072,16.129,157.72,157.65,10.04916816]
[1727680561274,16.129,157.72,157.66,30.04916816]
[1727680561478,16.129,157.72,157.67,10.04916816]
[1727680561673,16.129,157.72,157.68,10.04916816]
[1727680561871,16.129,157.72,157.69,10.04916816]
[1727680562072,16.129,157.72,157.7,10.04916816]
[1727680562295,16.129,157.72,157.65,20.0]
[1727680562490,16.129,157.72,157.67,20.0]
[1727680562788,16.129,157.72,157.68,10.04296244]
[1727680562997,16.129,157.72,157.69,10.04234731]
[1727680563291,16.129,157.72,157.67,20.0]
[1727680563491,16.129,157.72,157.68,10.04000205]
[1727680563702,16.129,157.72,157.69,10.04000205]
[1727680563870,16.129,157.72,157.68,10.04000205]
[1727680564072,16.129,157.72,157.69,10.04000205]
[1727680564489,16.129,157.72,157.68,1.26826542]
[1727680564675,16.129,157.72,157.64,20.12549]
[1727680564883,16.129,157.72,157.66,20.0]
[1727680565170,16.129,157.72,157.67,10.03799808]
[1727680565388,16.129,157.72,157.68,10.03799808]
[1727680565584,16.129,157.72,157.65,0.25098]
[1727680565879,16.129,157.72,157.67,20.0]
[1727680566085,16.129,157.72,157.68,10.03602038]
[1727680566283,16.129,157.72,157.67,20.0]
[1727680566480,16.129,157.72,157.64,20.0]
[1727680566687,16.129,157.72,157.66,20.0]
[1727680566890,16.129,157.72,157.67,10.03435726]
[1727680567196,16.129,157.72,157.64,20.0]
[1727680567373,16.129,157.72,157.66,20.0]
[1727680567575,16.129,157.72,157.67,10.03299179]
[1727680568495,16.129,157.72,157.67,11.30137484]
[1727680569277,16.129,157.72,157.67,11.29863883]
[1727680569492,16.129,157.72,157.65,10.03025578]
[1727680569676,16.129,157.72,157.66,20.0]
[1727680569992,16.129,157.72,157.67,10.03025578]
[1727680570298,16.129,157.72,157.66,20.0]
[1727680570473,16.129,157.72,157.66,30.03025578]
[1727680570680,16.129,157.72,157.66,20.0]
[1727680570884,16.129,157.72,157.66,30.03025578]
[1727680571109,6.3866,157.71,157.65,10.03025578]
[1727680571401,6.3866,157.71,157.61,44.027864]
[1727680571697,6.3866,157.71,157.63,0.25098]
[1727680571885,6.3866,157.71,157.64,10.03025578]
[1727680572084,6.3866,157.71,157.65,10.03025578]
[1727680572383,6.3866,157.71,157.64,10.03025578]
[1727680572699,6.3866,157.71,157.65,10.02615221]
[1727680572905,6.3866,157.71,157.64,20.0]
[1727680573194,6.3866,157.71,157.65,10.02615221]
[1727680573498,6.3866,157.71,157.64,20.0]
[1727680573684,6.3866,157.71,157.65,10.02615221]
[1727680574075,6.3866,157.71,157.64,20.0]
[1727680574076,6.3866,157.71,157.63,10.02615221]
[1727680574280,45.510184,157.7,157.62,20.0]
[1727680574483,45.510184,157.7,157.62,30.02615221]
[1727680574803,45.510184,157.7,157.62,20.0]
[1727680574983,6.3416,157.69,157.59,30.02615221]
[1727680575299,16.5538,157.69,157.61,20.0]
[1727680575495,16.5538,157.69,157.61,30.02615221]
[1727680575797,16.5538,157.69,157.6,20.0]
[1727680576007,16.5538,157.69,157.62,20.0]
[1727680576387,16.5538,157.69,157.63,20.0]
[1727680576983,16.5538,157.69,157.61,30.02615221]
[1727680577301,16.5538,157.69,157.6,20.0]
[1727680577503,16.5538,157.69,157.62,20.0]
[1727680578172,16.5538,157.69,157.6,20.0]
[1727680578374,16.5538,157.69,157.6,30.02615221]
[1727680578577,16.5538,157.69,157.6,20.0]
[1727680578796,16.5538,157.69,157.6,30.02615221]
[1727680579001,16.5538,157.69,157.6,20.0]
[1727680579220,16.5538,157.69,157.6,30.02615221]
[1727680579483,16.5538,157.69,157.61,20.0]
[1727680580095,16.5538,157.69,157.63,20.0]
[1727680580288,16.5538,157.69,157.62,20.0]
[1727680580487,16.5538,157.69,157.63,20.0]
[1727680580694,16.5538,157.69,157.63,28.01053351]
[1727680580874,16.5538,157.69,157.62,20.0]
[1727680581077,16.5538,157.69,157.62,28.01053351]
[1727680581374,16.5538,157.69,157.63,1.26863895]
[1727680582375,16.5538,157.69,157.62,28.01053351]
[1727680582580,16.5538,157.69,157.62,20.0]
[1727680582779,16.5538,157.69,157.6,20.25098]
[1727680582975,22.8955,157.69,157.62,20.0]
[1727680583210,23.776884,157.68,157.59,10.00667289]
[1727680583499,27.663,157.67,157.59,10.00667289]
[1727680583708,6.3429,157.66,157.56,10.00667289]
[1727680583883,27.663,157.67,157.57,10.00667289]
[1727680584089,27.663,157.67,157.56,10.00667289]
[1727680584291,21.3206,157.67,157.57,10.13200982]
[1727680584491,21.3206,157.67,157.58,20.0]
[1727680584986,21.3206,157.67,157.57,20.12549]
[1727680585184,21.3206,157.67,157.58,1.2688545]
[1727680586197,21.3206,157.67,157.59,10.13200982]
[1727680586391,21.3206,157.67,157.6,20.12549]
[1727680586607,21.3206,157.67,157.61,1.26867696]
[1727680586785,21.3206,157.67,157.6,20.12549]
[1727680587181,21.3206,157.67,157.6,20.0]
[1727680588002,21.3206,157.67,157.58,20.0]
[1727680588182,27.663,157.67,157.58,20.0]
[1727680588384,15.9399,157.65,157.58,20.0]
[1727680588587,22.2835,157.64,157.52,10.00481631]
[1727680588807,15.9399,157.62,157.52,20.13682613]
[1727680589118,15.9399,157.62,157.53,6.62467913]
[1727680589408,15.9399,157.62,157.5,10.13200982]
[1727680589409,30.121884,157.61,157.5,10.13200982]
[1727680590095,23.776884,157.59,157.49,10.13200982]
[1727680590483,22.5016,157.6,157.5,1.26951819]
[1727680590679,16.1564,157.6,157.5,21.26951819]
[1727680590879,16.1564,157.6,157.52,20.0]
[1727680591699,16.1564,157.6,157.49,43.902374]
[1727680591915,16.1564,157.6,157.49,53.90606805]
[1727680592294,16.1564,157.6,157.5,0.12549]
[1727680592589,16.1564,157.6,157.51,0.12549]
[1727680594401,16.1564,157.6,157.51,1.39484852]
[1727680594612,16.1564,157.6,157.51,0.12549]
[1727680595789,22.5016,157.6,157.51,0.12549]
[1727680596089,22.5016,157.6,157.5,0.12549]
[1727680596294,16.1564,157.6,157.5,1.39494323]
[1727680597192,6.3107,157.59,157.5,0.12549]
[1727680597410,16.3969,157.58,157.5,0.12549]
[1727680597805,16.3969,157.58,157.49,20.0]
[1727680607826,16.3969,157.58,157.5,1.26952723]
[1727680607827,15.4599,157.57,157.5,1.26952723]
[1727680608124,15.4599,157.57,157.47,20.0]
[1727680609132,15.4599,157.57,157.48,1.26964805]
[1727680609324,15.4599,157.57,157.49,0.12549]
[1727680609515,15.4599,157.57,157.5,1.26956892]
[1727680610033,15.4599,157.57,157.48,0.25098]
[1727680611131,15.4599,157.57,157.49,1.26957153]
[1727680611627,15.4599,157.57,157.48,24.027864]
[1727680612017,15.4599,157.57,157.49,20.0]
[1727680613338,15.4599,157.57,157.48,0.25098]
[1727680613642,15.4599,157.57,157.49,20.0]
[1727680614130,15.4599,157.57,157.51,20.0]
[1727680614321,15.4599,157.57,157.52,1.26947547]
[1727680614514,15.4599,157.57,157.52,11.41830067]
[1727680614739,15.4599,157.57,157.56,10.1488252]
[1727680614937,15.4599,157.57,157.54,20.0]
[1727680615115,15.4599,157.57,157.54,30.1488252]
[1727680615522,15.4599,157.57,157.53,20.0]
[1727680615815,15.4599,157.57,157.51,20.0]
[1727680616023,21.7607,157.57,157.5,0.25098]
[1727680616236,21.7607,157.57,157.52,4.99467331]
[1727680616440,21.7607,157.57,157.53,21.26939134]
[1727680616653,21.7607,157.57,157.53,20.0]
[1727680617138,21.7607,157.57,157.51,20.0]
[1727680618940,21.7607,157.57,157.52,1.26939295]
[1727680619323,15.4599,157.57,157.53,20.0]
[1727680619517,15.4599,157.57,157.54,1.26926852]
[1727680619716,15.4599,157.57,157.55,20.0]
[1727680619938,15.4599,157.57,157.56,1.26920086]
[1727680620329,15.4599,157.57,157.55,20.0]
[1727680621335,15.4599,157.57,157.55,21.26922425]
[1727680621547,15.4599,157.57,157.55,20.0]
[1727680622240,15.4599,157.57,157.53,20.0]
[1727680622839,15.4599,157.57,157.47,4.83213071]
[1727680623032,15.4599,157.57,157.49,10.1488252]
[1727680624347,15.4599,157.57,157.5,20.12549]
[1727680624642,15.4599,157.57,157.47,6.6166345]
[1727680624838,6.1729,157.56,157.47,16.7654597]
[1727680625935,6.1729,157.56,157.49,10.3998052]
[1727680626138,6.1729,157.56,157.5,21.26955468]
[1727680626523,6.1729,157.56,157.5,20.0]
[1727680631166,6.1729,157.56,157.51,1.26954603]
[1727680631362,6.1729,157.56,157.5,20.0]
[1727680632052,6.1729,157.56,157.51,11.41837113]
[1727680632238,15.4599,157.57,157.54,20.0]
[1727680632439,15.4599,157.57,157.55,1.26927326]
[1727680633555,15.4599,157.57,157.54,20.0]
[1727680635932,15.4599,157.57,157.55,1.26924516]
[1727680636759,15.4599,157.57,157.54,20.0]
[1727680637442,21.8638,157.61,157.56,20.0]
[1727680637645,21.8638,157.61,157.57,1.26909111]
[1727680638066,21.8638,157.61,157.57,11.41791631]
[1727680638239,21.8638,157.61,157.58,1.26899492]
[1727680638838,15.6403,157.61,157.57,10.1488252]
[1727680639658,15.6403,157.61,157.52,24.027864]
[1727680639858,15.6403,157.61,157.57,20.0]
[1727680640061,6.1786,157.64,157.59,20.0]
[1727680640236,15.8869,157.65,157.61,20.0]
[1727680640442,15.8869,157.65,157.62,11.41753094]
[1727680640750,15.8869,157.65,157.63,20.0]
[1727680641138,15.8869,157.65,157.62,10.1488252]
[1727680641346,15.8869,157.65,157.62,20.0]
[1727680642767,15.8869,157.65,157.63,1.26861325]
[1727680642972,16.5506,157.69,157.64,20.0]
[1727680643171,16.5506,157.69,157.65,11.4173186]
[1727680643376,16.5506,157.69,157.65,10.1488252]
[1727680643752,16.5506,157.69,157.63,10.1488252]
[1727680643953,16.5506,157.69,157.64,20.0]
[1727680646957,16.5506,157.69,157.65,1.26850544]
[1727680647371,16.5506,157.69,157.64,20.0]
[1727680648883,16.5506,157.69,157.65,11.4172525]
[1727680650957,16.5506,157.69,157.65,10.1488252]
[1727680651578,6.0777,157.72,157.67,10.1488252]
[1727680652078,23.776884,157.71,157.6,20.0]
[1727680652258,16.361,157.7,157.62,20.0]
[1727680652465,22.7022,157.7,157.59,10.1488252]
[1727680652653,23.776884,157.69,157.57,15.0414]
[1727680652862,0.25098,157.68,157.54,6.4415]
[1727680653158,0.12549,157.65,157.55,10.1488252]
[1727680653384,15.5336,157.63,157.53,16.76817074]
[1727680653563,15.5336,157.63,157.53,10.1488252]
[1727680654067,15.5336,157.63,157.52,6.62187563]
[1727680654368,15.5336,157.63,157.53,10.1488252]
[1727680654981,15.5336,157.63,157.54,20.0]
[1727680655185,23.776884,157.62,157.54,20.0]
[1727680655872,15.5336,157.63,157.55,1.26926464]
[1727680656060,15.5336,157.63,157.55,11.41808984]
[1727680656262,15.5336,157.63,157.56,20.0]
[1727680656478,15.5336,157.63,157.57,1.26911046]
[1727680657366,15.5336,157.63,157.57,11.41793566]
[1727680658455,15.5336,157.63,157.58,20.0]
[1727680658656,15.5336,157.63,157.59,1.26891458]
[1727680659479,15.5336,157.63,157.58,20.0]
[1727680665867,15.5336,157.63,157.58,21.26897889]
[1727680666285,15.5336,157.63,157.59,10.1488252]
[1727680666489,15.5336,157.63,157.6,1.26888128]
[1727680668471,15.5336,157.63,157.6,20.0]
[1727680670090,15.5336,157.63,157.61,1.26879151]
[1727680670882,15.8483,157.75,157.61,1.26879151]
[1727680670883,16.2191,157.68,157.62,20.0]
[1727680671096,16.2191,157.68,157.63,11.41738282]
[1727680671396,15.146,157.73,157.68,20.0]
[1727680671586,15.146,157.73,157.69,10.1488252]
[1727680672099,15.146,157.73,157.67,10.1488252]
[1727680672272,15.146,157.73,157.68,20.0]
[1727680673597,15.146,157.73,157.65,15.81911836]
[1727680673798,15.146,157.73,157.66,20.12549]
[1727680673998,15.146,157.73,157.67,1.26818901]
[1727680674779,15.146,157.73,157.66,20.12549]
[1727680674985,15.146,157.73,157.68,20.12549]
[1727680675879,15.146,157.73,157.69,1.26802028]
[1727680676205,15.146,157.73,157.7,20.0]
[1727680676702,15.8437,157.78,157.7,20.0]
[1727680676907,15.8437,157.78,157.71,1.26787501]
[1727680677787,15.8437,157.78,157.7,20.0]
[1727680678275,15.8437,157.78,157.72,20.0]
[1727680678781,15.8437,157.78,157.73,1.26781418]
[1727680679378,15.8437,157.78,157.71,0.25098]
[1727680679579,15.8437,157.78,157.72,21.2677472]
[1727680681086,15.8437,157.78,157.73,0.25098]
[1727680681291,15.8437,157.78,157.74,1.26760842]
[1727680681889,16.1584,157.82,157.74,1.26760842]
[1727680682085,16.1584,157.82,157.74,21.26760842]
[1727680682801,16.1584,157.82,157.74,20.0]
[1727680685403,16.1584,157.82,157.76,20.0]
[1727680685605,21.9411,157.9,157.79,15.81911836]
[1727680685785,21.9411,157.9,157.8,21.2672113]
[1727680685786,15.6079,157.9,157.8,21.2672113]
[1727680685989,15.6079,157.9,157.8,20.0]
[1727680686193,15.6079,157.9,157.81,1.26699237]
[1727680686905,15.6079,157.9,157.82,20.25098]
[1727680687884,15.6079,157.9,157.84,20.0]
[1727680688099,15.6079,157.9,157.85,1.26668976]
[1727680688408,0.81652261,157.93,157.86,20.0]
[1727680689400,0.81652261,157.93,157.87,1.26658396]
[1727680689992,0.81652261,157.93,157.86,20.0]
[1727680690193,0.81652261,157.93,157.87,1.26656752]
[1727680691299,0.81652261,157.93,157.88,0.12549]
[1727680693303,0.81652261,157.93,157.87,0.25098]
[1727680693520,0.81652261,157.93,157.87,1.51745249]
[1727680694713,0.81652261,157.93,157.89,0.25098]
[1727680694915,0.81652261,157.93,157.9,1.26632075]
[1727680696516,0.81652261,157.93,157.88,20.0]
[1727680696711,0.81652261,157.93,157.87,20.0]
[1727680697012,0.81652261,157.93,157.88,0.25098]
[1727680699418,0.81652261,157.93,157.87,35.81911836]
[1727680700016,0.81652261,157.93,157.88,1.26645887]
[1727680701499,0.81652261,157.93,157.9,10.0963906]
[1727680702423,0.81652261,157.93,157.91,1.26642097]
[1727680705220,0.81652261,157.93,157.9,10.0963906]
[1727680705726,0.81652261,157.93,157.91,1.26632084]
[1727680706235,0.81652261,157.93,157.92,11.36269598]
[1727680706519,0.81652261,157.93,157.92,10.0963906]
[1727680708714,0.81652261,157.93,157.91,10.0963906]
[1727680708911,0.81652261,157.93,157.92,1.26637018]
[1727680709211,0.81652261,157.93,157.9,0.12549]
[1727680709405,0.81652261,157.93,157.9,10.0963906]
[1727680709606,0.81652261,157.93,157.9,1.26641666]
[1727680709820,0.81652261,157.93,157.89,30.0963906]
[1727680710026,0.81652261,157.93,157.9,1.26656131]
[1727680710526,0.81652261,157.93,157.89,30.0963906]
[1727680710920,0.81652261,157.93,157.9,1.26639542]
[1727680712199,0.81652261,157.93,157.87,20.0]
[1727680712404,0.81652261,157.93,157.88,20.0]
[1727680713328,16.358,157.92,157.83,20.0]
[1727680713628,16.358,157.92,157.85,10.0963906]
[1727680714826,22.6904,157.92,157.82,7.74926953]
[1727680715027,30.235474,157.91,157.83,10.0963906]
[1727680715232,23.776884,157.91,157.83,10.0963906]
[1727680715434,16.358,157.92,157.87,10.0963906]
[1727680717548,16.358,157.92,157.85,10.0963906]
[1727680717737,16.358,157.92,157.86,20.0]
[1727680717940,16.358,157.92,157.87,1.26670205]
[1727680718845,16.358,157.92,157.86,20.0]
[1727680719553,16.358,157.92,157.87,1.26663664]
[1727680719930,16.358,157.92,157.86,20.0]
[1727680721660,16.358,157.92,157.87,1.26663843]
[1727680721861,16.358,157.92,157.87,11.36302903]
[1727680722732,16.358,157.92,157.87,19.15579403]
[1727680722934,16.358,157.92,157.87,17.8891556]
[1727680723638,16.358,157.92,157.87,7.792765]
[1727680723866,16.358,157.92,157.87,9.05944504]
[1727680724043,16.358,157.92,157.87,1.26668004]
[1727680724453,16.358,157.92,157.87,7.792765]
[1727680725253,16.358,157.92,157.86,37.8891556]
[1727680725552,16.358,157.92,157.87,9.05938828]
[1727680726547,16.358,157.92,157.87,0.25098]
[1727680726729,16.358,157.92,157.9,10.0963906]
[1727680726932,0.81652261,157.93,157.91,1.26646047]
[1727680727133,0.81652261,157.93,157.92,10.0963906]
[1727680727529,0.81652261,157.93,157.9,7.792765]
[1727680727733,0.81652261,157.93,157.91,10.0963906]
[1727680728361,0.81652261,157.93,157.91,17.8891556]
[1727680728660,0.81652261,157.93,157.9,7.792765]
[1727680729666,0.81652261,157.93,157.91,1.26628842]
[1727680729841,0.81652261,157.93,157.91,9.05905342]
[1727680730035,0.81652261,157.93,157.91,17.8891556]
[1727680730859,0.81652261,157.93,157.91,17.92718189]
[1727680732356,0.81652261,157.93,157.91,10.0963906]
[1727680733171,0.81652261,157.93,157.91,11.36272648]
[1727680733664,0.81652261,157.93,157.91,17.92718189]
[1727680734079,0.81652261,157.93,157.91,10.0963906]
[1727680734450,0.81652261,157.93,157.91,17.93779836]
[1727680735352,0.81652261,157.93,157.91,10.0963906]
[1727680735871,0.81652261,157.93,157.91,17.93932589]
[1727680736355,0.81652261,157.93,157.91,10.0963906]
[1727680737743,0.81652261,157.93,157.92,21.26622752]
[1727680738061,0.81652261,157.93,157.92,20.0]
[1727680738955,0.55886309,157.95,157.93,24.027864]
[1727680739170,0.55886309,157.95,157.94,54.1242546]
[1727680739347,0.55886309,157.95,157.94,55.39009096]
[1727680739970,0.55886309,157.95,157.94,54.1242546]
[1727680740178,0.55886309,157.95,157.94,20.0]
[1727680740484,0.55886309,157.95,157.94,36.60484989]
[1727680740679,0.55886309,157.95,157.94,35.33881581]
[1727680741273,0.55886309,157.95,157.94,36.60472514]
[1727680742057,0.55886309,157.95,157.94,59.11569981]
[1727680742997,0.55886309,157.95,157.94,35.33881581]
[1727680743188,0.55886309,157.95,157.94,35.335436]
[1727680743796,0.55886309,157.95,157.94,35.084456]
[1727680744786,0.55886309,157.95,157.94,4.9880654]
[1727680748860,0.55886309,157.95,157.94,4.98710578]
[1727680749584,0.55886309,157.95,157.88,17.9268053]
[1727680749782,0.55886309,157.95,157.89,4.98821137]
[1727680749961,0.55886309,157.95,157.9,4.98821137]
[1727680750159,0.55886309,157.95,157.91,4.98821137]
[1727680750374,0.55886309,157.95,157.92,4.98821137]
[1727680750574,0.55886309,157.95,157.88,10.0963906]
[1727680750774,0.55886309,157.95,157.89,4.98936333]
[1727680750982,0.55886309,157.95,157.9,4.98936333]
[1727680751158,0.55886309,157.95,157.88,10.0963906]
[1727680751159,0.55886309,157.95,157.91,4.98936333]
[1727680751361,0.55886309,157.95,157.92,4.98936333]
[1727680751562,0.55886309,157.95,157.93,4.98936333]
[1727680751871,0.55886309,157.95,157.88,17.92866438]
[1727680752070,0.55886309,157.95,157.89,4.98995137]
[1727680752370,0.55886309,157.95,157.9,4.98995137]
[1727680752574,0.55886309,157.95,157.91,4.98995137]
[1727680752773,0.55886309,157.95,157.92,4.98995137]
[1727680753105,22.7312,157.94,157.87,7.83227378]
[1727680753391,22.7312,157.94,157.88,6.25774752]
[1727680753593,22.7312,157.94,157.89,4.99101733]
[1727680753894,22.7312,157.94,157.9,4.99101733]
[1727680754088,22.7312,157.94,157.91,4.99101733]
[1727680754393,22.7312,157.94,157.92,4.99101733]
[1727680754592,22.7312,157.94,157.89,1.26654301]
[1727680754776,22.7312,157.94,157.9,4.99254072]
[1727680754980,22.7312,157.94,157.91,4.99254072]
[1727680755180,16.1606,157.94,157.92,4.99254072]
[1727680755377,16.1606,157.94,157.89,1.26654301]
[1727680755596,16.1606,157.94,157.9,4.9922921]
[1727680755897,16.1606,157.94,157.91,4.9922921]
[1727680756071,16.1606,157.94,157.92,4.9922921]
[1727680756272,16.1606,157.94,157.88,10.0963906]
[1727680756475,16.1606,157.94,157.89,4.99227084]
[1727680756788,16.1606,157.94,157.9,6.25871783]
[1727680756993,16.1606,157.94,157.91,4.99227084]
[1727680757171,16.1606,157.94,157.92,4.99227084]
[1727680757368,16.1606,157.94,157.9,1.26644699]
[1727680757574,16.1606,157.94,157.91,4.99236998]
[1727680757773,16.1606,157.94,157.92,4.99236998]
[1727680757987,16.1606,157.94,157.88,10.0963906]
[1727680758196,16.1606,157.94,157.89,6.25923469]
[1727680758500,16.1606,157.94,157.9,4.99278578]
[1727680758670,16.1606,157.94,157.91,4.99278578]
[1727680758870,16.1606,157.94,157.92,4.99278578]
[1727680759092,16.1606,157.94,157.93,4.99278578]
[1727680759704,16.1606,157.94,157.89,1.26644792]
[1727680759885,16.1606,157.94,157.93,4.99290473]
[1727680762403,16.1606,157.94,157.88,20.0]
[1727680762611,16.1606,157.94,157.89,4.99768689]
[1727680762815,16.1606,157.94,157.9,4.99768689]
[1727680763003,16.1606,157.94,157.85,6.61214985]
[1727680763188,16.1606,157.94,157.91,4.99827341]
[1727680763423,16.1606,157.94,157.87,7.84808908]
[1727680764298,16.1606,157.94,157.88,1.26661378]
[1727680764606,16.1606,157.94,157.87,7.84808908]
[1727680765315,16.1606,157.94,157.88,11.36291945]
[1727680765612,16.1606,157.94,157.88,19.21100853]
[1727680765921,16.1606,157.94,157.89,20.0]
[1727680766116,16.1606,157.94,157.9,1.26638002]
[1727680766917,16.1606,157.94,157.89,20.0]
[1727680767294,16.1606,157.94,157.89,27.8549843]
[1727680767598,16.1606,157.94,157.9,1.26638468]
[1727680768789,16.1606,157.94,157.9,11.36277528]
[1727680769123,0.55886309,157.95,157.92,10.0963906]
[1727680769307,0.55886309,157.95,157.93,1.26618377]
[1727680771086,0.55886309,157.95,157.93,21.26618377]
[1727680771319,0.43346309,157.95,157.94,33.0804906]
[1727680771506,24.00900135,158.09,157.96,0.12549]
[1727680771507,6.4795,158.07,157.96,0.12549]
[1727680771705,6.4795,158.07,157.99,10.0963906]
[1727680771889,6.4795,158.07,158.0,1.26554062]
[1727680773023,6.4795,158.07,158.0,51.26554062]
[1727680773214,6.4795,158.07,158.0,50.0]
[1727680774020,6.4795,158.07,158.01,1.26547434]